Cogmind - Beta 12 @@@ ROGUE MODE // 2023.03.04 @ 22:42:25 Player: Red Box Result: Destroyed by Y-45 Defender with Beam Rifle Performance ------------- Evolutions (0) 0 Regions Visited (2) 400 Robots Destroyed (18) 90 Value Destroyed (365) 365 Prototype IDs (5) 100 Alien Tech Used (0) 0 Bonus (-66) -66 TOTAL SCORE: 889 Bonus ------- Friendly Fire -66 Cogmind --------- Core Integrity 0/250 Matter 209/300 Energy 92/100 System Corruption 0% Temperature Cool (9) Movement Core (50) Location -10/Mines Parts ------- > --- POWER (1) -------- (None) > --- PROPULSION (2) --- (None) > --- UTILITY (2) ------ (None) > --- WEAPON (2) ------- (None) > --- INVENTORY (5) ---- Light Treads Light Treads Light Treads High-capacity Storage Unit High-capacity Battery (250) Peak State ------------ > --- POWER ------------ Ion Engine > --- PROPULSION ------- Wheel Wheel > --- UTILITY ---------- High-capacity Storage Unit Improved Terrain Scanner > --- WEAPON ----------- Light Cannon Light Cannon > --- INVENTORY -------- Light Treads Light Treads Wheel Wheel Heat Sink High-capacity Storage Unit High-capacity Battery Large Matter Pod Light Armor Plating EM Pulse Gun Autogun Autogun Autogun Autogun Grenade Launcher Grenade Launcher Mining Laser [Rating: 11] Favorites ----------- Power Light Ion Engine Engine Light Ion Engine Propulsion Wheel Treads Light Treads Leg Aluminum Leg Wheel Wheel Utility Improved Terrain Scanner Device Improved Terrain Scanner Storage Small Storage Unit Protection Light Armor Plating Weapon Light Cannon Ballistic Gun Assault Rifle Ballistic Cannon Light Cannon Launcher Grenade Launcher Special Weapon Mining Laser Special Melee Weapon Datajack Build | -11 -10 -10 ------- Run | Jun Mat Min Slots Evolved . | . . . Power . | . . . Propulsion . | . . . Utility . | . . . Weapon . | . . . Parts Attached 37 | 7 17 13 Power 2 | 1 1 . Engine 2 | 1 1 . Core . | . . . Reactor . | . . . Propulsion 9 | 2 3 4 Treads 2 | . . 2 Leg 2 | 2 . . Wheel 5 | . 3 2 Hover . | . . . Flight . | . . . Utility 6 | 2 2 2 Device 2 | 1 . 1 Storage 3 | 1 2 . Processor . | . . . Hackware . | . . . Protection 1 | . . 1 Artifact . | . . . Weapon 20 | 2 11 7 Energy Gun . | . . . Energy Cannon . | . . . Ballistic Gun 5 | 2 . 3 Ballistic Cannon 8 | . 7 1 Launcher 3 | . 1 2 Special Weapon 2 | . 1 1 Impact Weapon . | . . . Slashing Weapon . | . . . Piercing Weapon . | . . . Special Melee Weapon 2 | . 2 . Unidentified Prototypes . | . . . Parts Lost 14 | . 1 13 Power 1 | . . 1 Propulsion 5 | . 1 4 Utility 2 | . . 2 Weapon 6 | . . 6 Highest Loss Streak 9 | . 1 9 To Critical Strikes . | . . . Average Slot Usage (%) 94 | . 97 81 Engine 11 | . 14 2 Treads 1 | . . 6 Leg 11 | . 14 . Wheel 14 | . 13 20 Device 13 | . 14 10 Storage 13 | . 14 13 Ballistic Gun 11 | . 9 20 Ballistic Cannon 12 | . 14 5 Special Melee Weapon 1 | . 1 . Naked Turns 10 | . . 10 Heaviest Build 52 | 12 52 52 Greatest Support 40 | 20 20 40 Greatest Overweight (x) 3 | . 3 2 Average Overweight (x) . | . . 1 Largest Inventory Capacity 20 | 8 20 20 Average Capacity 13 | 7 11 19 Most Carried 20 | 8 20 20 Average Carried 10 | 5 9 15 Final Capacity 20 | 8 20 5 Final Carried 20 | 8 20 5 Class Distribution -------------------- 75% | Mutant 24% | Scavenger-Mutant Dominant Class ---------------- Mutant | -10/Materials Mutant | -10/Mines Resources | -11 -10 -10 ----------- Run | Jun Mat Min Matter Collected 1015 | 294 501 220 Remotely . | . . . Salvage Created 430 | 45 289 96 Parts 28 | 5 22 1 Haulers Intercepted 1 | . 1 . Recyclers Shooed . | . . . Parts Field Recycled . | . . . Retrieved Matter . | . . . Parts Self-Destructed . | . . . Prevented . | . . . Kills | -11 -10 -10 ------- Run | Jun Mat Min Combat Hostiles Destroyed 21 | . 8 13 Guns 6 | . 1 5 Cannons 5 | . 5 . AOE 10 | . 2 8 Classes Destroyed 9 | 1 5 3 Worker 2 | . 2 . Tunneler 2 | 2 . . Hauler 1 | . 1 . Operator 1 | . . 1 Watcher 3 | . 3 . Swarmer 3 | . 3 . Grunt 5 | . 5 . Demolisher 1 | . . 1 Assembled 12 | . . 12 Best Kill Streak 12 | 1 4 12 Combat Bots Only 12 | . 3 12 Max Kills in Single Turn 4 | 1 2 4 Gunslinging . | . . . Exploded 4 | . 2 4 Melee . | . . . Uniques/NPCs Destroyed . | . . . Combat | -11 -10 -10 -------- Run | Jun Mat Min Damage Taken 1591 | . 212 1379 Core 261 | . 25 236 Absorbed by Shields . | . . . Regen/Repaired (Parts) 101 | . 101 . Core Remaining (%) 100 | 100 . . Volleys Fired 67 | 7 37 23 Largest 2 | 2 2 2 Hottest 100 | 40 100 100 Shots Fired 131 | 14 73 44 Gun 76 | 14 30 32 Cannon 48 | . 41 7 Launcher 5 | . 1 4 Special 2 | . 1 1 Kinetic 124 | 14 71 39 Thermal 2 | . 1 1 Explosive 5 | . 1 4 Electromagnetic . | . . . Robot Hit Streak 8 | 8 5 6 Robot Miss Streak 4 | 1 4 4 Penetration Max . | . . . Secondary Targets . | . . . Shots Hit Robots 71 | 12 37 22 Core Hits 48 | 5 18 25 Critical Kills . | . . . Critical Parts Destroyed . | . . . Critical Strikes 3 | . 3 . Blast 3 | . 3 . Melee Attacks 1 | . 1 . Impact . | . . . Slashing . | . . . Piercing . | . . . Sneak Attacks 1 | . 1 . Combat Hostiles . | . . . Follow-up Attacks . | . . . Damage Inflicted 1588 | 119 623 846 Guns 543 | 119 153 271 Cannons 452 | . 401 51 Explosions 587 | . 63 524 Melee . | . . . Ramming 6 | . 6 . Kinetic 995 | 119 554 322 Thermal . | . . . Explosive 587 | . 63 524 Electromagnetic . | . . . Impact . | . . . Slashing . | . . . Piercing . | . . . Highest Corruption . | . . . Average Corruption . | . . . Corruption Purged . | . . . Corruption Blocked . | . . . Overload Shots . | . . . Overflow Damage 49 | . 4 45 Projectiles 13 | . 4 9 Explosions 36 | . . 36 Melee . | . . . Knockbacks 8 | . 6 2 Impact . | . . . Kinetic 7 | . 5 2 Secondary 1 | . 1 . Self-Inflicted Damage 104 | . . 104 Shots 4 | . . 4 Rammed . | . . . Targets Rammed 1 | . 1 . Kicked 1 | . 1 . Crushed . | . . . Highest Temperature 117 | . 117 16 Average Temperature 25 | . 27 7 Received Heat Transfer 142 | . 93 49 Siege Activations . | . . . Robots Corrupted . | . . . Combat Hostiles . | . . . Parts Fried . | . . . Impact Corruptions . | . . . Robots Melted . | . . . Combat Hostiles . | . . . Parts Melted . | . . . Heat Transferred . | . . . Parts Sabotaged . | . . . Parts Stolen . | . . . Parts Stripped . | . . . Power Chain Reactions . | . . . Missiles Intercepted . | . . . Alert | -11 -10 -10 ------- Run | Jun Mat Min Peak Influence 241 | 10 241 37 Initial 37 | . 6 37 Average 73 | 2 96 7 Maximum Alert Level 1 | . 1 . Low Security (%) 92 | 100 89 100 Level 1 7 | . 10 . Level 2 . | . . . Level 3 . | . . . Level 4 . | . . . Level 5 . | . . . High Security . | . . . Max Security . | . . . Squads Dispatched . | . . . Investigation . | . . . Extermination . | . . . Reinforcement . | . . . Assault . | . . . Garrison . | . . . Intercept . | . . . Searches Triggered . | . . . Construction Impeded . | . . . Haulers Reinforced . | . . . Active Scanning Responses . | . . . Cargo Convoy Interrupts . | . . . Stealth | -11 -10 -10 --------- Run | Jun Mat Min Distress Signals . | . . . Communications Jammed . | . . . Distress Signals . | . . . Times Spotted 43 | . 14 29 Peak Tracking Total 18 | . 3 18 Tactical Retreats 3 | . . 3 Traps | -11 -10 -10 ------- Run | Jun Mat Min Traps Triggered . | . . . Indirectly . | . . . Trap Hack Attempts 84 | . 84 . Triggered . | . . . Disarmed 3 | . 3 . Reprogrammed 6 | . 6 . Reused 1 | . 1 . Traps Extracted . | . . . Installed 2 | . . 2 Triggered 1 | . 1 . Most Traps Carried 3 | . . 3 Machines | -11 -10 -10 ---------- Run | Jun Mat Min Machines Disabled 2 | . 2 . Max in Single Turn 1 | . 1 . Machines Repaired . | . . . Machines Sabotaged . | . . . Overloaded Fab Kills . | . . . Hacking | -11 -10 -10 --------- Run | Jun Mat Min Machines Accessed 9 | . 9 . Terminals 7 | . 7 . Fabricators . | . . . Repair Stations 1 | . 1 . Recycling Units 1 | . 1 . Scanalyzers . | . . . Garrison Access . | . . . Total Hacks 38 | . 38 . Successful 28 | . 28 . Failed 9 | . 9 . Catastrophic 3 | . 3 . Database Lockouts 1 | . 1 . Manual 25 | . 25 . Terminals 30 | . 30 . Fabricators . | . . . Repair Stations 4 | . 4 . Recycling Units 4 | . 4 . Scanalyzers . | . . . Garrison Access . | . . . Terminal Hacks 10 | . 10 . Robot Analysis 5 | . 5 . Prototype ID Bank 3 | . 3 . Terminal Index 1 | . 1 . Hauler Manifests 1 | . 1 . Fabricator Hacks . | . . . Repair Station Hacks 4 | . 4 . Scan Component 2 | . 2 . Repair 2 | . 2 . Recycling Unit Hacks 1 | . 1 . Retrieve Components 1 | . 1 . Scanalyzer . | . . . Garrison Access Hacks . | . . . Unauthorized Hacks 13 | . 13 . Terminals 12 | . 12 . Track 2 | . 2 . Assimilate 5 | . 5 . Botnet 4 | . 4 . Operators 1 | . 1 . Fabricators . | . . . Repair Stations . | . . . Recycling Units 1 | . 1 . Reject 1 | . 1 . Scanalyzers . | . . . Garrison Access . | . . . Data Cores Recovered . | . . . Used . | . . . Hacking Detections 7 | . 7 . Full Trace Events . | . . . Feedback Events . | . . . Feedback Blocked . | . . . Robot Schematics Acquired . | . . . Robots Built . | . . . Authchips . | . . . Time . | . . . Total Robot Build Rating . | . . . Part Schematics Acquired . | . . . Parts Built . | . . . Authchips . | . . . Time . | . . . Total Part Build Rating . | . . . Parts Repaired 2 | . 2 . Time 52 | . 52 . Parts Recycled . | . . . Recycled Matter . | . . . Retrieved Matter . | . . . Retrieved Components . | . . . Parts Scanalyzed . | . . . Part Schematics Acquired . | . . . Parts Damaged . | . . . Bothacking | -11 -10 -10 ------------ Run | Jun Mat Min Used RIF Installer . | . . . Robots Hacked 1 | . 1 . Non-combat 1 | . 1 . Combat . | . . . Robot Hacks Applied 1 | . 1 . no_distress 1 | . 1 . Relay Couplers Released . | . . . Fabnet Peak Effective % . | . . . Robots Rewired . | . . . Allies Hacked . | . . . Hacks Repelled . | . . . Allies | -11 -10 -10 -------- Run | Jun Mat Min Total Allies 7 | . 2 5 Largest Group 5 | . 2 5 Highest-Rated Group 85 | . 20 85 Highest-Rated Ally 31 | . 10 31 Total Orders 2 | . 2 . STAY 1 | . 1 . FOLLOW 1 | . 1 . Ally Attacks 5 | . . 5 Total Damage 76 | . . 76 Kills . | . . . Allies Corrupted . | . . . Allies Melted . | . . . Intel | -11 -10 -10 ------- Run | Jun Mat Min Robot Analysis Total 5 | . 5 . Derelict Logs Recovered 1 | . . 1 Drone Launches . | . . . Drone Recoveries . | . . . Exploration | -11 -10 -10 ------------- Run | Jun Mat Min Turns Passed 2439 | 149 1808 482 Spaces Moved 1722 | 94 1326 302 Core 25 | 5 . 20 Treads 29 | . . 29 Legs 769 | 89 680 . Wheels 899 | . 646 253 Hover . | . . . Flight . | . . . Fastest Speed 50 | 50 80 50 Average Speed 111 | 116 110 118 Slowest Speed 240 | 120 125 240 Overloaded Moves . | . . . Propulsion Burnouts . | . . . Robots Hopped . | . . . Cave-ins Triggered . | . . . Exploration Rate (%) 49 | 7 98 43 Regions Visited 2 Branch Regions 1 Pre-discovered Areas . | . . . Known Exits Taken . | . . . Unknown Exits Taken 2 | 1 1 . Scrap Searched . | . . . Spaces Dug 2 | . 1 1 Terrain Destroyed 56 | . 13 43 Melee . | . . . Projectile 2 | . 1 1 AOE 54 | . 12 42 Terrain Rammed . | . . . Walls Destroyed . | . . . Machines Disabled . | . . . Actions | -11 -10 -10 --------- Run | Jun Mat Min Total 2101 | 117 1600 384 Wait 149 | 2 108 39 Move 1720 | 93 1325 302 Hop . | . . . Pick Up 29 | 8 18 3 Fast Attach 11 | 7 4 . Attach 11 | . 2 9 Detach . | . . . Swap 15 | . 11 4 Drop 11 | . 9 2 Fire 67 | 7 37 23 Melee 1 | . 1 . Ram . | . . . Kick 1 | . 1 . Crush . | . . . Escape Stasis . | . . . Rewire . | . . . Trap 86 | . 84 2 Miscellaneous . | . . . Route ------- -11/Junkyard -10/Materials (discovered 4 exits: [*Mat x3] / [*Min]) -10/Mines History --------- Turn | Location | Event 11 | -11/Junkyard | Discovered new exit (range 14) 150 | -11/Junkyard | Entered Materials 317 | -10/Materials | Build established: Mutant 536 | -10/Materials | Discovered new exit (range 13) 1249 | -10/Materials | Discovered new exit (range 3) 1362 | -10/Materials | Central database locked down 1365 | -10/Materials | Discovered new exit (range 13) 1622 | -10/Materials | Repaired Lgt. Cannon 1650 | -10/Materials | Repaired Lgt. Cannon 1677 | -10/Materials | Discovered new exit (range 10) 1757 | -10/Materials | Build established: Scavenger-Mutant 1958 | -10/Materials | Entered Mines 1958 | -10/Mines | Accompanied by 2 allies 2007 | -10/Mines | Assembled infested the area 2012 | -10/Mines | Assisted by a Guerilla fighting off Assembled 2077 | -10/Mines | Core integrity fell below 50% 2113 | -10/Mines | Lost 9 parts (1p2n2u4w) 2117 | -10/Mines | Destroyed 12 combat bots 2154 | -10/Mines | Found a hidden stash of uninstalled traps 2217 | -10/Mines | Assisted by bots powering up and referring to "LRC-V3" 2342 | -10/Mines | Build established: Mutant 2429 | -10/Mines | Core integrity fell below 20% 2430 | -10/Mines | Released all parts (3) 2440 | -10/Mines | Destroyed by Y-45 Defender with Beam Rifle Last Messages --------------- 02386_ Trooper 1a destroyed. 02390_ D-53 Grenadier destroyed. 02395_ The unstable cave ceiling collapses. 02396_ Core Extractor disabled. 02396_ G-34 Mercenary destroyed. 02399_ K-01 Serf destroyed. 02415_ Dropped Proton Bomb Trap. 02416_ Installed Proton Bomb Trap. 02416_ Autogun destroyed. 02421_ Dropped Proton Bomb Trap. 02422_ Installed Proton Bomb Trap. 02430_ Mining Laser destroyed. 02430_ Wheel destroyed. 02430_ Released Heat Sink. 02430_ Released Autogun. 02430_ Released Hcp. Storage Unit. 02430_ Extracted 150 matter. 02432_ The unstable cave ceiling collapses. 02432_ Heat Sink crushed. 02434_ The unstable cave ceiling collapses. Map ----- +----------------------------------------------------+ | ??????????????????? # #??# #???# #? | | ??????????????????????????????###### ##?# #???# #? | | ???????????????????????????????????# #### #???# #? | | ???????????????????????????????????# #???# ## | | ???????????????????????????????????###### #???# | | ??????????????????????????????#??#??????# #???# ] | | ????????????????????????????????????????# #???# | | ???????????????????????????????#???????##%##### | | ?????????????????????????????????????#?# # | | ????????????????????????????? ????????## % % | | ????????????????????????????# ????????# # %% | | ??????????????????????????##? """?????# % | | | ???????????????????????? #??? """????## % # | | ???????????????????????# ##* ?????# #%# #### | | ???????????????????????# % " ?????# # ### | | ???????????????????????# # = " ????## ## # ### | | ???????????????????????? %* % " ?????# # # ## | | ???????????????????????## # ??????## # ### | | ??????????????????????## #???????### #?# | | ??????????????????????# ######??### #?# | | ??????????????????????# # ## #### # ### | | ??????????????????????# ## ### # | | ??????????????????????# =[ # | | ??????????????????????# # g | | ???????????????????##?## d # | | ??????????????????##" # @ # | | ??????????????????#"" Y ## [ #### | | ??????????????????#[! # [!& #?? | | ??????????????????#!! !#] ##?? | | ??????????????????#"" Y # =[! #??? | | ??????????????????##" # ####### ###??? | | ???????????????????#### ##?????### ##?#### | | ??????????????????????# #????????#### ##??# | | ?????????????????????# ################### | | ????????????????????# ## | | ????????????????????# #### ####### | | ????????????????????## #???# #?????# | | ?????????????????????###????##### #?????## | | ????????????????????????????????# #?????## | | ????????????????????????????????# #????## | | ????????????????????????????????########???## | | ???????????????????????????????????????##### | | ??????????????????????????????????????## | | ?????????????????????????????????????## | | ????????????????????????????????????## ## | | ????????????????????????????????????# ######### | | ???????????????????????????????????## ##???????? | | ???????????????????????????????????# ##????????? | | ??????????????????????????????????# #?????????? | | ?????????????????????????????????# #?????????? | +----------------------------------------------------+ Best States ------------- Heat Dissipation 35 Energy Generation 10 Energy Capacity 250 Matter Stores 300 Matter Capacity 300 Sight Range 16 Terrain Scan Range 16 Terrain Scan Density 10 Armor Coverage 150 Evasion (%) 55 Recoil Reduction 2 Item Schematics ----------------- None Robot Schematics ------------------ None Fabricated ------------ Nothing Alien Tech Used ----------------- None Achievements -------------- None Challenges ------------ None Game ------ Seed GuidanceSpliceWell Manual? 0 Play Time 00:17:19 Cumulative 527.1 hours Start 2023.03.04 @ 22:26:29 End 2023.03.04 @ 22:42:25 Sessions 1 Manual Loads 0 Difficulty Rogue Special Mode None Game No. 379 Rogue 379 Adventurer 0 Explorer 0 Win Type - Total 1 Types 1/0/0/0/0/0/0/0/0 Lore% 69 Gallery% 77 Achievement% 58 Wizard Run 0 Options --------- ASCII 0 Keyboard 0 Movement Mouse Keybinds 0 Fullscreen 1 Font 16/SmallcapsGlow Map View 75x55 Tactical HUD 1 Map Filters NONE Filters NONE Steam 1 RUN: 3aa0af34-5c83-48fc-b39a-ac6f9e65f740